Cogmind - Beta 15 --- EXPLORER MODE // 2025.05.12 @ 13:44:58 // Winter2022/Polymind Player: wolft Result: Self-destructed Performance ------------- Evolutions (1) 500 Regions Visited (2) 400 Robots Destroyed (0) 0 Value Destroyed (0) 0 Prototype IDs (0) 0 Alien Tech Used (0) 0 Bonus (1038) 1038 TOTAL SCORE: 1618 Bonus ------- Polymind Skill 838 Pacifist 200 Cogmind --------- Core Integrity 400/400 Matter 25/125 Energy 50/50 System Corruption 0% Temperature Cool (0) Movement Rolling (80) Location -9/Materials Parts ------- > --- POWER (1) -------- Light Ion Engine > --- PROPULSION (2) --- Wheel Wheel > --- UTILITY (1) ------ Medium Matter Pod > --- WEAPON (1) ------- (None) > --- INVENTORY (1) ---- (None) Peak State ------------ > --- POWER ------------ Light Ion Engine > --- PROPULSION ------- Compact Wheel Compact Wheel > --- UTILITY ---------- Small Storage Unit Tractor Beam > --- WEAPON ----------- (None) > --- INVENTORY -------- (None) [Rating: 5] Favorites ----------- Power Light Ion Engine Engine Light Ion Engine Propulsion Compact Wheel Wheel Compact Wheel Utility Small Storage Unit Device Tractor Beam Storage Small Storage Unit Weapon None Build | -11 -10 -9 ------- Run | Yrd Mat Mat Slots Evolved . | . . . Power . | . . . Propulsion . | . . . Utility . | . . . Weapon . | . . . Parts Attached . | . . . Power . | . . . Engine . | . . . Core . | . . . Reactor . | . . . Propulsion . | . . . Treads . | . . . Leg . | . . . Wheel . | . . . Hover . | . . . Flight . | . . . Utility . | . . . Device . | . . . Storage . | . . . Processor . | . . . Hackware . | . . . Protection . | . . . Artifact . | . . . Weapon . | . . . Energy Gun . | . . . Energy Cannon . | . . . Ballistic Gun . | . . . Ballistic Cannon . | . . . Launcher . | . . . Special Weapon . | . . . Impact Weapon . | . . . Slashing Weapon . | . . . Piercing Weapon . | . . . Special Melee Weapon . | . . . Unidentified Prototypes . | . . . Parts Lost . | . . . Power . | . . . Propulsion . | . . . Utility . | . . . Weapon . | . . . Highest Loss Streak . | . . . To Critical Strikes . | . . . Average Backups 2 | 2 3 2 Power . | 1 . . Propulsion . | . . . Utility . | 1 1 . Weapon 1 | . 1 1 Tool/Special . | . . . Unused Backups 8 | . 4 4 Power 2 | . 2 . Propulsion 1 | . . 1 Utility 2 | . 2 . Weapon 3 | . . 3 Tool/Special . | . . . Average Slot Usage (%) 96 | . 100 92 Engine 20 | . 20 20 Wheel 40 | . 40 40 Device 16 | . 20 12 Storage 20 | . 20 20 Peak Build Rating 5 | 5 5 5 Average Rating 4 | 4 5 4 On Entrance 3 | . 5 5 Naked Turns 2 | . . 2 Heaviest Build 9 | 9 9 9 Greatest Support 32 | 32 32 32 Greatest Overweight (x) . | . . . Average Overweight (x) . | . . . Largest Inventory Capacity 4 | 4 4 4 Average Capacity 3 | 3 4 2 Most Carried 4 | 4 4 4 Average Carried 2 | 2 3 2 Final Capacity 4 | 4 4 1 Final Carried 4 | 4 4 . Class Distribution -------------------- 78% | Recycler 21% | Worker Dominant Class ---------------- Recycler | -10/Materials Recycler | -9/Materials Resources | -11 -10 -9 ----------- Run | Yrd Mat Mat Matter Collected . | . . . Remotely . | . . . Salvage Created . | . . . Parts . | . . . Haulers Intercepted . | . . . Recyclers Shooed . | . . . Parts Field Recycled . | . . . Retrieved Matter . | . . . Parts Self-Destructed . | . . . Prevented . | . . . Kills | -11 -10 -9 ------- Run | Yrd Mat Mat Combat Hostiles Destroyed . | . . . Classes Destroyed . | . . . Best Kill Streak . | . . . Combat Bots Only . | . . . Max Kills in Single Turn . | . . . Gunslinging . | . . . Exploded . | . . . Melee . | . . . Uniques/NPCs Destroyed . | . . . Combat | -11 -10 -9 -------- Run | Yrd Mat Mat Hostile Shots Fired 5 | . . 5 Missed 3 | . . 3 Hits 2 | . . 2 Melee 1 | . . 1 Projectile 1 | . . 1 Critical Strikes 1 | . . 1 Damage Taken 27 | . . 27 Core . | . . . Absorbed by Shields . | . . . Ignored by Resistances 16 | . . 16 Core Remaining (%) 100 | 100 100 . Volleys Fired . | . . . Largest . | . . . Hottest . | . . . Shots Fired . | . . . Gun . | . . . Cannon . | . . . Launcher . | . . . Special . | . . . Kinetic . | . . . Thermal . | . . . Explosive . | . . . Electromagnetic . | . . . Robot Hit Streak . | . . . Robot Miss Streak . | . . . Penetration Max . | . . . Secondary Targets . | . . . Shots Hit Robots . | . . . Core Hits . | . . . Critical Kills . | . . . Critical Parts Destroyed . | . . . Critical Strikes . | . . . Melee Attacks . | . . . Impact . | . . . Slashing . | . . . Piercing . | . . . Sneak Attacks . | . . . Combat Hostiles . | . . . Follow-up Attacks . | . . . Damage Inflicted . | . . . Guns . | . . . Cannons . | . . . Explosions . | . . . Melee . | . . . Ramming . | . . . Kinetic . | . . . Thermal . | . . . Explosive . | . . . Electromagnetic . | . . . Impact . | . . . Slashing . | . . . Piercing . | . . . Highest Corruption . | . . . Average Corruption . | . . . Corruption Purged . | . . . Corruption Blocked . | . . . Overload Shots . | . . . Overflow Damage . | . . . Projectiles . | . . . Explosions . | . . . Melee . | . . . Knockbacks . | . . . Impact . | . . . Kinetic . | . . . Secondary . | . . . Self-Inflicted Damage . | . . . Shots . | . . . Rammed . | . . . Targets Rammed . | . . . Kicked . | . . . Crushed . | . . . Highest Temperature 4 | . . 4 Average Temperature 4 | . . 4 Received Heat Transfer 9 | . . 9 Siege Activations . | . . . Martial Activations . | . . . Shielding Activations . | . . . Robots Disrupted . | . . . Combat Hostiles . | . . . Robots Corrupted . | . . . Combat Hostiles . | . . . Parts Fried . | . . . Impact Corruptions . | . . . Robots Melted . | . . . Combat Hostiles . | . . . Parts Melted . | . . . Heat Transferred . | . . . Parts Sabotaged . | . . . Parts Stolen . | . . . Parts Stripped . | . . . Power Chain Reactions . | . . . Alert | -11 -10 -9 ------- Run | Yrd Mat Mat Maximum Alert Level . | . . . Low Security (%) 100 | 100 100 100 Level 1 . | . . . Level 2 . | . . . Level 3 . | . . . Level 4 . | . . . Level 5 . | . . . High Security . | . . . Max Security . | . . . Peak Influence 30 | . . 30 Initial . | . . . Average 1 | . . 3 Influence Increases 32 | . . 32 Successful Hack 2 | . . 2 Lose Combat Pursuer 30 | . . 30 Influence Decreases 17 | . . 17 Time Decay 17 | . . 17 Squads Dispatched 1 | . . 1 Investigation . | . . . Extermination . | . . . Reinforcement 1 | . . 1 Assault . | . . . Garrison . | . . . Intercept . | . . . Searches Triggered . | . . . Construction Impeded . | . . . Haulers Reinforced . | . . . Active Scanning Responses . | . . . Cargo Convoy Interrupts . | . . . Stealth | -11 -10 -9 --------- Run | Yrd Mat Mat Distress Signals 1 | . . 1 Communications Jammed . | . . . Distress Signals . | . . . Times Spotted 7 | . . 7 Peak Tracking Total 4 | . . 4 Tactical Retreats 1 | . . 1 Traps | -11 -10 -9 ------- Run | Yrd Mat Mat Traps Triggered . | . . . Indirectly . | . . . Trap Hack Attempts . | . . . Triggered . | . . . Disarmed . | . . . Reprogrammed . | . . . Reused . | . . . Traps Extracted . | . . . Installed . | . . . Triggered . | . . . Machines | -11 -10 -9 ---------- Run | Yrd Mat Mat Machines Disabled . | . . . Max in Single Turn . | . . . Machines Repaired . | . . . Machines Dismantled . | . . . Machines Sabotaged . | . . . Overloaded Fab Kills . | . . . Hacking | -11 -10 -9 --------- Run | Yrd Mat Mat Machines Accessed 3 | . 1 2 Terminals 3 | . 1 2 Fabricators . | . . . Repair Stations . | . . . Recycling Units . | . . . Scanalyzers . | . . . Garrison Access . | . . . Total Hacks 5 | . 2 3 Successful 1 | . . 1 Failed 4 | . 2 2 Catastrophic . | . . . Database Lockouts . | . . . Manual . | . . . Terminals 5 | . 2 3 Fabricators . | . . . Repair Stations . | . . . Recycling Units . | . . . Scanalyzers . | . . . Garrison Access . | . . . Terminal Hacks 1 | . . 1 Emergency Access Points 1 | . . 1 Fabricator Hacks . | . . . Repair Station Hacks . | . . . Recycling Unit Hacks . | . . . Scanalyzer . | . . . Garrison Access Hacks . | . . . Unauthorized Hacks . | . . . Terminals . | . . . Fabricators . | . . . Repair Stations . | . . . Recycling Units . | . . . Scanalyzers . | . . . Garrison Access . | . . . Data Cores Recovered . | . . . Used . | . . . Hacking Detections 1 | . 1 . Full Trace Events . | . . . Feedback Events . | . . . Feedback Blocked . | . . . Robot Schematics Acquired . | . . . Robots Built . | . . . Authchips . | . . . Time . | . . . Total Robot Build Rating . | . . . Part Schematics Acquired . | . . . Parts Built . | . . . Authchips . | . . . Time . | . . . Total Part Build Rating . | . . . Parts Repaired . | . . . Time . | . . . Parts Recycled . | . . . Recycled Matter . | . . . Retrieved Matter . | . . . Retrieved Components . | . . . Parts Scanalyzed . | . . . Part Schematics Acquired . | . . . Parts Damaged . | . . . Bothacking | -11 -10 -9 ------------ Run | Yrd Mat Mat Used RIF Installer . | . . . Robots Hacked . | . . . Non-combat . | . . . Combat . | . . . Robot Hacks Applied . | . . . Relay Couplers Released . | . . . Fabnet Peak Effective % . | . . . Robots Rewired . | . . . Allies Hacked . | . . . Hacks Repelled . | . . . Allies | -11 -10 -9 -------- Run | Yrd Mat Mat Total Allies . | . . . Largest Group . | . . . Highest-Rated Group . | . . . Highest-Rated Ally . | . . . Total Orders . | . . . Ally Attacks . | . . . Total Damage . | . . . Kills . | . . . Allies Corrupted . | . . . Allies Melted . | . . . Intel | -11 -10 -9 ------- Run | Yrd Mat Mat Active Infowar (turns) . | . . . Robot Analysis Total 2 | 1 . 1 Derelict Logs Recovered . | . . . Drone Launches . | . . . Drone Recoveries . | . . . Exploration | -11 -10 -9 ------------- Run | Yrd Mat Mat Turns Passed 405 | 64 165 176 Spaces Moved 411 | 58 158 195 Core 17 | 15 . 2 Treads . | . . . Legs . | . . . Wheels 394 | 43 158 193 Hover . | . . . Flight . | . . . Fastest Speed 50 | 50 100 50 Average Speed 93 | 87 100 90 Slowest Speed 100 | 100 100 100 Overloaded Moves . | . . . Propulsion Burnouts . | . . . Robots Hopped . | . . . Potential Cave-ins . | . . . Cave-ins Triggered . | . . . Exploration Rate (%) 22 | 3 32 32 Regions Visited 2 Branch Regions . Pre-discovered Areas . | . . . Known Exits Taken 2 | 1 1 . Unknown Exits Taken . | . . . Scrap Searched . | . . . Spaces Dug . | . . . Terrain Destroyed . | . . . Melee . | . . . Projectile . | . . . AOE . | . . . Terrain Rammed . | . . . Walls Destroyed . | . . . Machines Disabled . | . . . Actions | -11 -10 -9 --------- Run | Yrd Mat Mat Total 431 | 71 165 195 Wait 10 | 10 . . Move 409 | 57 157 195 Hop . | . . . Pick Up 8 | 4 4 . Fast Attach . | . . . Attach . | . . . Detach . | . . . Swap . | . . . Drop . | . . . Fire . | . . . Melee . | . . . Ram . | . . . Kick . | . . . Crush . | . . . Escape Stasis . | . . . Rewire . | . . . Trap . | . . . Miscellaneous 4 | . 4 . Route ------- -11/Scrapyard -10/Materials (discovered 2 exits: *Mat / *Min) -9/Materials History --------- Turn | Location | Event 3 | -11/Scrapyard | Identified exit to Materials 3 | -11/Scrapyard | Discovered exit to Materials (range 15) 65 | -11/Scrapyard | Entered Materials 66 | -10/Materials | Met a group of wandering Federalists 95 | -10/Materials | Identified exit to Mines 95 | -10/Materials | Discovered exit to Mines (range 14) 217 | -10/Materials | Identified exit to Materials 217 | -10/Materials | Discovered exit to Materials (range 13) 230 | -10/Materials | Entered another Materials area 406 | -9/Materials | Self-destructed Last Messages --------------- 00322_ K-01 Serf collects debris. 00331_ Released control of R-06 Scavenger. 00332_ R-06 Scavenger reactivates. 00333_ Took control of K-01 Serf. 00333_ Extracted analysis data for K-01 Serf. 00333_ Collected debris. 00338_ O-16 Technician: "IFF HANDSHAKE FAILED. SECURING TERMINAL." 00339_ O-16 Technician distress signal alerts nearby ally. 00340_ Cleaned Material Processor. 00342_ Collected debris. 00347_ ALERT: Hostiles spotted, dispatching reinforcements to Terminal M008. 00353_ Connecting with Terminal... 00353_ Cleaned Terminal. 00377_ Collected debris. 00378_ Cleaned Material Compactor. 00378_ Collected debris. 00402_ Cleaned Fusion Modulator. Map ----- +----------------------------------------------------+ | ?????????????????????????????????????????????????? | | ?????????????????????????????????????????????????? | | ?????????????????????????????????????????????????? | | ?????????????????????????????????????????????????? | | ?????????????????????????????????????????????????? | | ?????????????????????????????????????????????????? | | ?????????????????????????????????????????????????? | | ?????????????????????????????????????????????????? | | ?????????????????????????????????????????????????? | | ?????????????????????????????????????????????????? | | ?????????????????????????????????????????????????? | | ?????????????????????????????????????????????????? | | ??????????????????????? ?? ?????????????????????? | | ?????????????????????!! ?? #???????????????????? | | ??????????????????# = T" #???????????????????? | | ??????????????????# "" #???????????????????? | | ??????????????????# #???????????????????? | | ??????????????????# #???????????????????? | | ??????????????????# #"""T???????????????? | | ??????????????????# ???????????????? | | ??????????????????# ????????????????? | | ??????????????????# w ????????????????? | | ??????????????????# ?????????????????? | | ??????????????????# ?????????????????? | | ??????????????????# """ """ "?????????????????? | | ??????????????????# """ k""" "?????????????????? | | ??????????????????# """g """ """ ??????????????? | | ??????????????????# b ???????????? | | ?????????########## u a ???????????? | | ?????????#[ # ##############?????????????? | | ?????????# # #??????????????????????????? | | ?????????# """ !# #??????????????????????????? | | ?????????# """"" # #??????????????????????????? | | ?????????# """"" # #??????????????????????????? | | ?????????# """"" # #??????????????????????????? | | ?????????# """ + +??????????????????????????? | | ?????????# # #??????????????????????????? | | ?????????# # #??????????????????????????? | | ?????????###+###### #??????????????????????????? | | ???????????# #??????????????????????????? | | ???????????# ##?????????????????????????? | | ?????????### T#?????????????????????????? | | ?????????#"" ##?????????????????????????? | | ?????????#"T !! #??????????????????????????? | | ?????????#"" !! #??????????????????????????? | | ?????????### #??????????????????????????? | | ???????????# #??????????????????????????? | | ???????????# ]/ #??????????????????????????? | | ???????????# ]/ #??????????????????????????? | | ???????????### #### #??????????????????????????? | +----------------------------------------------------+ Best States ------------- Heat Dissipation 13 Energy Generation 10 Energy Capacity 50 Matter Stores 25 Matter Capacity 125 Sight Range 14 Terrain Scan Density 10 Resistance: KI 35 Resistance: TH 35 Resistance: EX 35 Resistance: EM 10 Resistance: I 35 Resistance: S 35 Resistance: P 35 Evasion (%) 44 Offensive Hacking 20 Item Schematics ----------------- None Robot Schematics ------------------ None Fabricated ------------ Nothing Repaired ---------- Nothing Alien Tech Used ----------------- None Achievements -------------- None Challenges ------------ None Polymind | -11 -10 -9 ---------- Run | Yrd Mat Mat Hosts 2 | 1 . 1 Combat Hostiles . | . . . Allies . | . . . Unique Host Classes 2 | 1 . 1 Average Host Suspicion 28 | 9 9 51 Unsuspicious Activity 70 | 2 20 48 Returns to Shadow . | . . . Fuzzy Dispatches . | . . . Protomatter Created . | . . . Used 10 | 5 . 5 Decayed . | . . . Highest Spend 5 | 5 . 5 Game ------ Seed ReactiveFluxRailgun Manual? 0 Play Time 00:07:28 Cumulative 59.8 hours Start 2025.05.12 @ 13:39:58 End 2025.05.12 @ 13:44:58 Sessions 1 Manual Loads 0 Difficulty Explorer Special Mode Winter2022/Polymind Game No. 114 Rogue 6 Adventurer 26 Explorer 82 Win Type - Total 1 Types 1/0/0/0/0/0/0/0/0/0 Lore% 21 Gallery% 38 Achievement% 39 Wizard Run 0 Options --------- Layout 1 ASCII 0 Keyboard 0 Movement Mouse Keybinds 0 Fullscreen 1 Font 24/Terminus Map View 50x35 Zoom Use 0% Tactical HUD 1 Map Filters NONE Filters NONE Steam 1 RUN: 983e258d-4e02-470e-9994-fd37de0b3e39